fUST/lending_fUST_20240530
["ID","MTS","AMOUNT","RATE_DAILY","PERIOD"]
[328232369,1717079455658,-500.0,0.00041095,4]
[328232370,1717079455667,-500.0,0.00041095,4]
[328232371,1717079455678,-562.08272378,0.00041095,4]
[328232372,1717079455687,-178.6967621,0.00041096,2]
[328232373,1717079455697,-1244.0045436,0.00041096,7]
[328232374,1717079455707,-500.0,0.00041096,31]
[328232375,1717079455717,-500.0,0.00041096,31]
[328232376,1717079455727,-500.0,0.00041096,31]
[328232377,1717079455736,-500.0,0.00041096,31]
[328232378,1717079455746,-500.0,0.00041096,31]
[328232379,1717079455756,-500.0,0.00041096,31]
[328232380,1717079455766,-500.0,0.00041096,31]
[328232381,1717079455777,-500.0,0.00041096,31]
[328232382,1717079455786,-500.0,0.00041096,31]
[328232383,1717079455796,-500.0,0.00041096,31]
[328232384,1717079455805,-500.0,0.00041096,31]
[328232385,1717079455816,-500.0,0.00041096,31]
[328232386,1717079455826,-500.0,0.00041096,31]
[328232387,1717079455835,-500.0,0.00041096,31]
[328232388,1717079455846,-500.0,0.00041096,31]
[328232389,1717079455860,-500.0,0.00041096,31]
[328232390,1717079455870,-500.0,0.00041096,31]
[328232391,1717079455880,-500.0,0.00041096,31]
[328232392,1717079455890,-500.0,0.00041096,31]
[328232393,1717079455902,-500.0,0.00041096,31]
[328232394,1717079455912,-500.0,0.00041096,31]
[328232395,1717079455923,-500.0,0.00041096,31]
[328232396,1717079455935,-500.0,0.00041096,31]
[328232397,1717079455945,-398.09630398,0.00041096,31]
[328232398,1717079455954,-500.0,0.00041096,31]
[328232399,1717079455964,-500.0,0.00041096,31]
[328232400,1717079455973,-500.0,0.00041096,31]
[328232401,1717079455983,-500.0,0.00041096,31]
[328232402,1717079455994,-500.0,0.00041096,31]
[328232403,1717079456003,-500.0,0.00041096,31]
[328232404,1717079456013,-500.0,0.00041096,31]
[328232405,1717079456023,-500.0,0.00041096,31]
[328232406,1717079456034,-500.0,0.00041096,31]
[328232407,1717079456043,-500.0,0.00041096,31]
[328232408,1717079456053,-500.0,0.00041096,31]
[328232409,1717079456062,-500.0,0.00041096,31]
[328232410,1717079456071,-500.0,0.00041096,31]
[328232411,1717079456081,-500.0,0.00041096,31]
[328232412,1717079456091,-500.0,0.00041096,31]
[328232413,1717079456102,-500.0,0.00041096,31]
[328232414,1717079456113,-500.0,0.00041096,31]
[328232415,1717079456125,-500.0,0.00041096,31]
[328232416,1717079456134,-500.0,0.00041096,31]
[328232417,1717079456145,-500.0,0.00041096,31]
[328232418,1717079456155,-595.55804262,0.00041096,31]
[328232419,1717079456165,-500.0,0.00041096,31]
[328232420,1717079456174,-2826.90506,0.00041553,120]
[328232421,1717079456183,-2009.91076424,0.00041655,28]
[328232422,1717079456194,-5000.0,0.000419,15]
[328232423,1717079456203,-619.0,0.00041918,30]
[328232424,1717079456214,-150.7,0.00041918,30]
[328232425,1717079456224,-314.37217828,0.0004194,10]
[328232426,1717079456233,-1000.0,0.00042,120]
[328232427,1717079456242,-200.0,0.00042002,120]
[328232428,1717079456254,-573.413161,0.00042163,2]
[328232429,1717079456263,-1649.41000113,0.000424,120]
[328232430,1717079456272,-153.0,0.00042466,2]
[328232431,1717079456283,-2443.08763042,0.000425,30]
[328232432,1717079456292,-311.7531816,0.0004274,2]
[328232433,1717079456301,-444168.51754981,0.000428,30]
[328232434,1717079456310,-52364.83776767,0.00043,30]
[328232435,1717079456320,-1012.22001877,0.00043198,120]
[328232436,1717079456330,-294082.78781348,0.00043236,15]
[328232437,1717079456340,-1850.9,0.000433,120]
[328232438,1717079456350,-1000.0,0.00043835,2]
[328232439,1717079456359,-1000.0,0.00043835,2]
[328232440,1717079456370,-1000.0,0.00043835,2]
[328232441,1717079456380,-1000.0,0.00043835,2]
[328232442,1717079456391,-461.13573311,0.00043835,2]
[328232443,1717079456400,-200.0,0.00043982,120]
[328232444,1717079456409,-1000.0,0.00044,120]
[328232445,1717079456419,-3732.80129125,0.00044384,60]
[328232446,1717079456428,-822.11284508,0.00045,20]
[328232447,1717079456437,-155.03720893,0.00045,5]
[328232448,1717079456446,-310.44604444,0.00045,120]
[328232449,1717079456455,-151.0,0.00045,120]
[328232450,1717079456465,-662.98574636,0.00045,111]
[328232451,1717079456475,-598.81233972,0.00045,120]
[328232452,1717079456484,-3548.08,0.00045,120]
[328232453,1717079456493,-2933.42189118,0.00045,120]
[328232454,1717079456502,-10666.22980433,0.00045,60]
[328232455,1717079456512,-2000.0,0.00045,32]
[328232456,1717079456521,-151.0,0.00045644,120]
[328232457,1717079456532,-2015.35056294,0.000458,90]
[328232458,1717079456541,-155.04651395,0.000459,4]
[328232459,1717079456552,-200.0,0.00045965,120]
[328232460,1717079456561,-1000.0,0.00046,120]
[328232461,1717079456570,-2480.58479689,0.00046,120]
[328232462,1717079456579,-200.0,0.00046084,120]
[328232463,1717079456588,-151.0,0.00046301,120]
[328232464,1717079456597,-998.0,0.00046547,30]
[328232465,1717079456607,-998.0,0.00046547,30]
[328232466,1717079456617,-998.0,0.00046547,30]
[328232467,1717079456626,-998.0,0.00046547,30]
[328232468,1717079456635,-998.0,0.00046547,30]
[328232469,1717079456644,-870.97161453,0.00046547,30]
[328232470,1717079456655,-619.0,0.00046575,60]
[328232471,1717079456666,-150.7,0.00046575,60]
[328232472,1717079456675,-583.804585,0.00046822,2]
[328232473,1717079456687,-151.0,0.00046959,120]
[328232474,1717079456696,-201.58109303,0.0004698,120]
[328232475,1717079456708,-20529.48174151,0.00047,4]
[328232476,1717079456717,-400.0,0.00047,4]
[328232477,1717079456727,-445.77105739,0.000473,120]
[328232478,1717079456736,-141753.49194359,0.0004745,120]
[328232479,1717079456746,-2826.90506,0.00047489,120]
[328232480,1717079456756,-175.79870357,0.00047525,120]
[328232481,1717079456766,-151.0,0.00047616,120]
[328232482,1717079456777,-1965.83935498,0.000478,120]
[328232483,1717079456786,-687.21580935,0.000478,120]
[328232484,1717079456795,-200.0,0.0004787,120]
[328232485,1717079456804,-1000.0,0.00048,120]
[328232486,1717079456813,-573.413161,0.00048089,2]
[328232487,1717079456823,-151.0,0.00048274,120]
[328232488,1717079456832,-33159.09310902,0.000489,30]
[328232489,1717079456841,-151.0,0.00048932,120]
[328232490,1717079456852,-6446.49239204,0.00049,10]
[328232491,1717079456865,-5475.83295511,0.00049,120]
[328232492,1717079456875,-500.0,0.00049315,31]
[328232493,1717079456884,-300.17565618,0.00049315,31]
[328232494,1717079456893,-500.0,0.00049315,31]
[328232495,1717079456903,-500.0,0.00049315,31]
[328232496,1717079456912,-500.0,0.00049315,31]
[328232497,1717079456922,-500.0,0.00049315,31]
[328232498,1717079456931,-201.58090565,0.00049315,31]
[328232499,1717079456942,-268.56321574,0.00049315,120]
[328232500,1717079456952,-165.7309315,0.00049315,120]
[328232501,1717079456961,-153.0,0.00049315,2]
[328232502,1717079456970,-151.0,0.00049589,120]
[328232503,1717079456979,-10000.0,0.00049678,120]
[328232504,1717079456989,-1000.0,0.000499,120]
[328232505,1717079456998,-2594.6,0.00049947,6]
[328232506,1717079457007,-2020.15,0.00049947,6]
[328232507,1717079457017,-5000.0,0.0005,50]
[328232508,1717079457026,-571.51925932,0.0005,7]
[328232509,1717079457036,-155.0,0.0005,30]
[328232510,1717079457045,-209.04243632,0.0005,20]
[328232511,1717079457054,-1000.0,0.0005,120]
[328232512,1717079457064,-515.25940191,0.0005,10]
[328232513,1717079457073,-150.0,0.0005,120]
[328232514,1717079457082,-300.0,0.0005,120]
[328232515,1717079457091,-300.0,0.0005,120]
[328232516,1717079457100,-150.0,0.0005,120]
[328232517,1717079457109,-300.0,0.0005,120]
[328232518,1717079457119,-8468.36719205,0.0005,90]
[328232519,1717079457129,-518.45187663,0.0005,2]
[328232520,1717079457140,-3998.22790488,0.0005,120]
[328232521,1717079457150,-151.0,0.0005,120]
[328232522,1717079457159,-150.26195093,0.0005,30]
[328232523,1717079457169,-254.49571207,0.0005,120]
[328232524,1717079457178,-4299.6383519,0.0005,4]
[328232525,1717079457187,-5059.65784399,0.0005,60]
[328232526,1717079457196,-151.0,0.00050247,120]
[328232527,1717079457207,-463.1533064,0.00050274,2]
[328232528,1717079457216,-291.9275846,0.00050274,2]
[328232529,1717079457226,-204.8553096,0.00050274,2]
[328232530,1717079457235,-300.0,0.000503,15]
[328232531,1717079457244,-1000.0,0.000503,15]
[328232532,1717079457254,-10000.0,0.00050678,120]
[328232533,1717079457264,-1072.66,0.00050874,120]
[328232534,1717079457274,-1181.08,0.00050874,120]
[328232535,1717079457284,-1172.53,0.00050874,120]
[328232536,1717079457293,-1180.5,0.00050874,120]
[328232537,1717079457303,-1233.35,0.00050874,120]
[328232538,1717079457312,-1194.89,0.00050874,120]
[328232539,1717079457321,-1162.57,0.00050874,120]
[328232540,1717079457331,-1398.20668888,0.00050874,120]
[328232541,1717079457341,-9572.14,0.00050874,120]
[328232542,1717079457350,-9281.1881516,0.00050874,120]
[328232543,1717079457359,-151.0,0.00050904,120]
[328232544,1717079457368,-3000.0,0.00051,85]
[328232545,1717079457377,-3000.0,0.0005101,85]
[328232546,1717079457387,-3000.0,0.0005102,85]
[328232547,1717079457397,-3000.0,0.0005103,85]
[328232548,1717079457406,-3000.0,0.0005104,85]
[328232549,1717079457415,-3000.0,0.0005105,85]
[328232550,1717079457424,-3000.0,0.0005106,85]
[328232551,1717079457434,-3000.0,0.0005107,85]
[328232552,1717079457443,-4697.36949,0.0005108,85]
[328232553,1717079457452,-5000.0,0.000515,30]
[328232554,1717079457462,-151.0,0.00051562,120]
[328232555,1717079457471,-10000.0,0.00051678,120]
[328232556,1717079457480,-981.48,0.000518,120]
[328232557,1717079457489,-1000.0,0.00052,120]
[328232558,1717079457498,-151.0,0.00052219,120]
[328232559,1717079457507,-306.0,0.00052466,2]
[328232560,1717079457516,-10000.0,0.00052666,120]
[328232561,1717079457526,-151.0,0.00052877,120]
[328232562,1717079457535,-2826.90506,0.00053425,120]
[328232563,1717079457544,-151.0,0.00053534,120]
[328232564,1717079457554,-10000.0,0.00053678,120]
[328232565,1717079457563,-10000.0,0.00053678,120]
[328232566,1717079457572,-1000.0,0.00054,120]
[328232567,1717079457580,-200.05030307,0.00054,120]
[328232568,1717079457590,-573.413161,0.00054016,2]
[328232569,1717079457599,-151.0,0.00054192,120]
[328232570,1717079457609,-1000.0,0.00054794,90]
[328232571,1717079457618,-410.26501341,0.00054794,90]
[328232572,1717079457627,-500.0,0.00054794,4]
[328232573,1717079457636,-500.0,0.00054794,4]
[328232574,1717079457646,-404.92061433,0.00054794,4]
[328232575,1717079457655,-500.0,0.00054794,120]
[328232576,1717079457664,-500.0,0.00054794,120]
[328232577,1717079457673,-500.0,0.00054794,120]
[328232578,1717079457683,-500.0,0.00054794,120]
[328232579,1717079457693,-500.0,0.00054794,120]
[328232580,1717079457703,-500.0,0.00054794,120]
[328232581,1717079457712,-500.0,0.00054794,120]
[328232582,1717079457722,-500.0,0.00054794,120]
[328232583,1717079457732,-500.0,0.00054794,120]
[328232584,1717079457742,-500.0,0.00054794,120]
[328232585,1717079457751,-500.0,0.00054794,120]
[328232586,1717079457841,-500.0,0.00054794,120]
[328232587,1717079457851,-500.0,0.00054794,120]
[328232588,1717079457865,-500.0,0.00054794,120]
[328232589,1717079457874,-500.0,0.00054794,120]
[328232590,1717079457883,-500.0,0.00054794,120]
[328232591,1717079457892,-500.0,0.00054794,120]
[328232592,1717079457903,-500.0,0.00054794,120]
[328232593,1717079457914,-500.0,0.00054794,120]
[328232594,1717079457924,-342.41334754,0.00054794,120]
[328232595,1717079457937,-500.0,0.00054794,120]
[328232596,1717079457946,-172.60271229,0.00054794,120]
[328232597,1717079457956,-1846.7,0.00054794,120]
[328232598,1717079457965,-1846.7,0.00054794,120]
[328232599,1717079457976,-1846.7,0.00054794,120]
[328232600,1717079457986,-1846.7,0.00054794,120]
[328232601,1717079457997,-1846.7,0.00054794,120]
[328232602,1717079458009,-1846.7,0.00054794,120]
[328232603,1717079458021,-1846.7,0.00054794,120]
[328232604,1717079458031,-1846.7,0.00054794,120]
[328232605,1717079458040,-1846.7,0.00054794,120]
[328232606,1717079458050,-1846.7,0.00054794,120]
[328232607,1717079458061,-1846.7,0.00054794,120]
[328232608,1717079458070,-1846.7,0.00054794,120]
[328232609,1717079458080,-1846.7,0.00054794,120]
[328232610,1717079458091,-1846.7,0.00054794,120]
[328232611,1717079458102,-1846.7,0.00054794,120]
[328232612,1717079458114,-1846.7,0.00054794,120]
[328232613,1717079458123,-1846.7,0.00054794,120]
[328232614,1717079458133,-1846.7,0.00054794,120]
[328232615,1717079458143,-1846.7,0.00054794,120]
[328232616,1717079458153,-1846.7,0.00054794,120]
[328232617,1717079458164,-1846.7,0.00054794,120]
[328232618,1717079458174,-1846.7,0.00054794,120]
[328232619,1717079458183,-1846.7,0.00054794,120]
[328232620,1717079458192,-1846.93455204,0.00054794,120]
[328232621,1717079458201,-510.48095892,0.00054794,4]
[328232622,1717079458211,-474.40464558,0.00054795,120]
[328232623,1717079458220,-474.40464558,0.00054795,120]
[328232624,1717079458230,-474.40464558,0.00054795,120]
[328232625,1717079458239,-474.40464558,0.00054795,120]
[328232626,1717079458249,-474.40464558,0.00054795,120]
[328232627,1717079458260,-474.40464558,0.00054795,120]
[328232628,1717079458269,-474.40464558,0.00054795,120]
[328232629,1717079458280,-474.40464558,0.00054795,120]
[328232630,1717079458289,-474.40464558,0.00054795,120]
[328232631,1717079458299,-474.40464558,0.00054795,120]
[328232632,1717079458308,-474.40464558,0.00054795,120]
[328232633,1717079458318,-474.40464558,0.00054795,120]
[328232634,1717079458328,-474.40464558,0.00054795,120]
[328232635,1717079458338,-474.40464558,0.00054795,120]
[328232636,1717079458347,-474.40464558,0.00054795,120]
[328232637,1717079458357,-474.40464558,0.00054795,120]
[328232638,1717079458367,-474.40464558,0.00054795,120]
[328232639,1717079458376,-474.40464558,0.00054795,120]
[328232640,1717079458387,-474.40464558,0.00054795,120]
[328232641,1717079458397,-474.9,0.00054795,120]
[328232642,1717079458406,-1897.69358233,0.00054795,120]
[328232643,1717079458416,-1897.69358233,0.00054795,120]
[328232644,1717079458426,-1897.69358233,0.00054795,120]
[328232645,1717079458435,-1897.69358233,0.00054795,120]
[328232646,1717079458445,-1897.69358233,0.00054795,120]
[328232647,1717079458454,-1897.69358233,0.00054795,120]
[328232648,1717079458465,-1897.69358233,0.00054795,120]
[328232649,1717079458475,-1897.69358233,0.00054795,120]
[328232650,1717079458484,-1897.69358233,0.00054795,120]
[328232651,1717079458494,-1897.69358233,0.00054795,120]
[328232652,1717079458505,-1897.69358233,0.00054795,120]
[328232653,1717079458514,-1897.69358233,0.00054795,120]
[328232654,1717079458524,-1897.69358233,0.00054795,120]
[328232655,1717079458535,-1897.69358233,0.00054795,120]
[328232656,1717079458544,-1897.69358233,0.00054795,120]
[328232657,1717079458554,-1897.69358233,0.00054795,120]
[328232658,1717079458565,-1897.69358233,0.00054795,120]
[328232659,1717079458576,-1897.69358233,0.00054795,120]
[328232660,1717079458586,-1897.69358233,0.00054795,120]
[328232661,1717079458595,-1898.19,0.00054795,120]
[328232662,1717079458605,-193.63,0.00054795,120]
[328232663,1717079458615,-221.8330277,0.00054795,120]
[328232664,1717079458624,-221.8330277,0.00054795,120]
[328232665,1717079458633,-221.8330277,0.00054795,120]
[328232666,1717079458643,-221.8330277,0.00054795,120]
[328232667,1717079458652,-221.8330277,0.00054795,120]
[328232668,1717079458662,-221.8330277,0.00054795,120]
[328232669,1717079458672,-221.8330277,0.00054795,120]
[328232670,1717079458682,-221.8330277,0.00054795,120]
[328232671,1717079458692,-221.8330277,0.00054795,120]
[328232672,1717079458703,-221.8330277,0.00054795,120]
[328232673,1717079458712,-221.8330277,0.00054795,120]
[328232674,1717079458723,-221.8330277,0.00054795,120]
[328232675,1717079458732,-221.8330277,0.00054795,120]
[328232676,1717079458742,-221.8330277,0.00054795,120]
[328232677,1717079458753,-221.8330277,0.00054795,120]
[328232678,1717079458764,-221.8330277,0.00054795,120]
[328232679,1717079458774,-221.8330277,0.00054795,120]
[328232680,1717079458786,-221.8330277,0.00054795,120]
[328232681,1717079458795,-221.8330277,0.00054795,120]
[328232682,1717079458804,-222.33,0.00054795,120]
[328232683,1717079458814,-887.40711082,0.00054795,120]
[328232684,1717079458823,-887.40711082,0.00054795,120]
[328232685,1717079458832,-887.40711082,0.00054795,120]
[328232686,1717079458843,-887.40711082,0.00054795,120]
[328232687,1717079458854,-887.40711082,0.00054795,120]
[328232688,1717079458865,-887.40711082,0.00054795,120]
[328232689,1717079458874,-887.40711082,0.00054795,120]
[328232690,1717079458883,-887.40711082,0.00054795,120]
[328232691,1717079458892,-887.40711082,0.00054795,120]
[328232692,1717079458902,-887.40711082,0.00054795,120]
[328232693,1717079458911,-887.40711082,0.00054795,120]
[328232694,1717079458921,-887.40711082,0.00054795,120]
[328232695,1717079458932,-887.40711082,0.00054795,120]
[328232696,1717079458943,-887.40711082,0.00054795,120]
[328232697,1717079458952,-887.40711082,0.00054795,120]
[328232698,1717079458962,-887.40711082,0.00054795,120]
[328232699,1717079458970,-887.40711082,0.00054795,120]
[328232700,1717079458980,-887.40711082,0.00054795,120]
[328232701,1717079458988,-887.40711082,0.00054795,120]
[328232702,1717079458998,-887.9,0.00054795,120]
[328232703,1717079459007,-151.0,0.00054849,120]
[328232704,1717079459016,-5000.0,0.000549,60]
[328232705,1717079459025,-255.39249103,0.00055,120]
[328232706,1717079459036,-5000.0,0.00055,60]
[328232707,1717079459046,-5000.0,0.00055,70]
[328232708,1717079459055,-5000.0,0.00055,80]
[328232709,1717079459064,-5000.0,0.00055,50]
[328232710,1717079459074,-7048.15105305,0.00055,90]
[328232711,1717079459083,-3998.22790488,0.00055,120]
[328232712,1717079459093,-151.0,0.00055507,120]
[328232713,1717079459102,-1000.0,0.00056,120]
[328232714,1717079459111,-153.0,0.00056027,60]
[328232715,1717079459120,-153.0,0.00056027,60]
[328232716,1717079459129,-153.0,0.00056027,60]
[328232717,1717079459139,-153.0,0.00056027,60]
[328232718,1717079459149,-151.0,0.00056164,120]
[328232719,1717079459158,-248.0,0.000566,120]
[328232720,1717079459167,-999.42,0.00056639,120]
[328232721,1717079459178,-1012.53,0.00056639,120]
[328232722,1717079459187,-954.04,0.00056639,120]
[328232723,1717079459197,-1105.42,0.00056639,120]
[328232724,1717079459206,-1107.51,0.00056639,120]
[328232725,1717079459215,-945.44,0.00056639,120]
[328232726,1717079459224,-1000.48,0.00056639,120]
[328232727,1717079459234,-1039.04,0.00056639,120]
[328232728,1717079459244,-1134.19,0.00056639,120]
[328232729,1717079459255,-961.11,0.00056639,120]
[328232730,1717079459265,-1101.32,0.00056639,120]
[328232731,1717079459274,-1064.38,0.00056639,120]
[328232732,1717079459284,-1023.62,0.00056639,120]
[328232733,1717079459294,-625.32047702,0.00056639,120]
[328232734,1717079459304,-6396.92,0.00056639,120]
[328232735,1717079459313,-6409.96,0.00056639,120]
[328232736,1717079459322,-6046.4481516,0.00056639,120]
[328232737,1717079459331,-151.0,0.00056822,120]
[328232738,1717079459341,-1771.32978069,0.00057,120]
[328232739,1717079459350,-153.0,0.00057014,60]
[328232740,1717079459359,-151.0,0.00057479,120]
[328232741,1717079459369,-1000.0,0.00058,120]
[328232742,1717079459378,-150.92453773,0.00058101,2]
[328232743,1717079459388,-151.0,0.00058137,120]
[328232744,1717079459398,-151.0,0.00058795,120]
[328232745,1717079459407,-5000.0,0.000589,60]
[328232746,1717079459416,-1837.21763024,0.00059054,120]
[328232747,1717079459426,-151.0,0.00059452,120]
[328232748,1717079459435,-40612.0,0.0005993,120]
[328232749,1717079459444,-573.413161,0.00059942,2]
[328232750,1717079459454,-1000.0,0.00059999,120]
[328232751,1717079459467,-5000.0,0.0006,25]
[328232752,1717079459476,-5000.0,0.0006,60]
[328232753,1717079459485,-995.60080735,0.0006,60]
[328232754,1717079459495,-160.0,0.0006,60]
[328232755,1717079459504,-1009.04352855,0.0006,120]
[328232756,1717079459514,-1000.0,0.0006,120]
[328232757,1717079459523,-1000.0,0.0006,120]
[328232758,1717079459534,-1000.0,0.0006,120]
[328232759,1717079459543,-1000.0,0.0006,120]
[328232760,1717079459552,-677.49890542,0.0006,12]
[328232761,1717079459561,-30000.0,0.0006,30]
[328232762,1717079459571,-1000000.0,0.0006,120]
[328232763,1717079459579,-3998.29000029,0.0006,120]
[328232764,1717079459589,-3998.22790488,0.0006,120]
[328232765,1717079459598,-273.07681454,0.0006,120]
[328232766,1717079459608,-151.0,0.0006011,120]
[328232767,1717079459618,-151.0,0.00060767,120]
[328232768,1717079459627,-151.0,0.00061425,120]
[328232769,1717079459636,-346.55957211,0.000616,120]
[328232770,1717079459646,-1000.0,0.00061649,30]
[328232771,1717079459655,-151.0,0.00062082,120]
[328232772,1717079459665,-5000.0,0.000625,60]
[328232773,1717079459675,-151.0,0.0006274,120]
[328232774,1717079459685,-151.0,0.00063397,120]
[328232775,1717079459694,-151.0,0.00063699,120]
[328232776,1717079459703,-50562.0,0.0006378,120]
[328232777,1717079459713,-2142.873,0.000639,120]
[328232778,1717079459723,-2142.873,0.000639,120]
[328232779,1717079459732,-2142.873,0.000639,120]
[328232780,1717079459741,-2142.873,0.000639,120]
[328232781,1717079459751,-2142.873,0.000639,120]
[328232782,1717079459760,-1000.0,0.00064,120]
[328232783,1717079459769,-151.0,0.00064055,120]
[328232784,1717079459779,-1165.54,0.00064327,120]
[328232785,1717079459788,-1094.75,0.00064327,120]
[328232786,1717079459797,-1120.15,0.00064327,120]
[328232787,1717079459806,-1094.13,0.00064327,120]
[328232788,1717079459817,-1028.72,0.00064327,120]
[328232789,1717079459827,-1160.33,0.00064327,120]
[328232790,1717079459838,-1176.13,0.00064327,120]
[328232791,1717079459847,-1103.4,0.00064327,120]
[328232792,1717079459861,-1003.23,0.00064327,120]
[328232793,1717079459871,-1163.78,0.00064327,120]
[328232794,1717079459881,-1003.08,0.00064327,120]
[328232795,1717079459894,-1172.73,0.00064327,120]
[328232796,1717079459904,-1035.98,0.00064327,120]
[328232797,1717079459992,-1017.88,0.00064327,120]
[328232798,1717079460002,-1020.75,0.00064327,120]
[328232799,1717079460011,-1145.25,0.00064327,120]
[328232800,1717079460020,-406.30515257,0.00064327,120]
[328232801,1717079460031,-3908.09,0.00064327,120]
[328232802,1717079460040,-3825.23,0.00064327,120]
[328232803,1717079460049,-3889.59,0.00064327,120]
[328232804,1717079460059,-3938.52,0.00064327,120]
[328232805,1717079460068,-3291.8981516,0.00064327,120]
[328232806,1717079460078,-8344.7317316,0.000644,120]
[328232807,1717079460088,-69075.0,0.0006457,120]
[328232808,1717079460098,-151.0,0.00064712,120]
[328232809,1717079460108,-168.962461,0.0006484,2]
[328232810,1717079460117,-4692.29265636,0.000649,120]
[328232811,1717079460127,-6181.52340786,0.00065,120]
[328232812,1717079460137,-3998.22790488,0.00065,120]
[328232813,1717079460147,-151.0,0.0006537,120]
[328232814,1717079460159,-5000.0,0.000655,60]
[328232815,1717079460169,-573.413161,0.00065869,2]
[328232816,1717079460179,-1000.0,0.00066001,120]
[328232817,1717079460189,-151.0,0.00066027,120]
[328232818,1717079460200,-151.0,0.00066685,120]
[328232819,1717079460210,-659.11206555,0.000668,120]
[328232820,1717079460219,-151.0,0.00067342,120]
[328232821,1717079460229,-1000.0,0.00067611,120]
[328232822,1717079460238,-10073.48263023,0.00068,120]
[328232823,1717079460248,-1891.2,0.00068,60]
[328232824,1717079460259,-151.0,0.00068,120]
[328232825,1717079460269,-2009.91076424,0.00068029,28]
[328232826,1717079460280,-1021.73440065,0.00068493,120]
[328232827,1717079460290,-1021.73440065,0.00068493,120]
[328232828,1717079460300,-1021.73440065,0.00068493,120]
[328232829,1717079460311,-1021.73440065,0.00068493,120]
[328232830,1717079460320,-1021.73440065,0.00068493,120]
[328232831,1717079460330,-1021.73440065,0.00068493,120]
[328232832,1717079460340,-1021.73440065,0.00068493,120]
[328232833,1717079460350,-1021.73440065,0.00068493,120]
[328232834,1717079460360,-1021.73440065,0.00068493,120]
[328232835,1717079460369,-1021.73440065,0.00068493,120]
[328232836,1717079460379,-1021.73440065,0.00068493,120]
[328232837,1717079460388,-1021.73440065,0.00068493,120]
[328232838,1717079460398,-1021.73440065,0.00068493,120]
[328232839,1717079460408,-1021.73440065,0.00068493,120]
[328232840,1717079460417,-1021.73440065,0.00068493,120]
[328232841,1717079460427,-1021.73440065,0.00068493,120]
[328232842,1717079460436,-1021.73440065,0.00068493,120]
[328232843,1717079460445,-1021.73440065,0.00068493,120]
[328232844,1717079460454,-1021.73440065,0.00068493,120]
[328232845,1717079460464,-1021.73440065,0.00068493,120]
[328232846,1717079460473,-1021.73440065,0.00068493,120]
[328232847,1717079460482,-1021.73440065,0.00068493,120]
[328232848,1717079460491,-1021.73440065,0.00068493,120]
[328232849,1717079460501,-1021.73440065,0.00068493,120]
[328232850,1717079460510,-1021.73440065,0.00068493,120]
[328232851,1717079460520,-1021.73440065,0.00068493,120]
[328232852,1717079460531,-1021.73440065,0.00068493,120]
[328232853,1717079460540,-1021.73440065,0.00068493,120]
[328232854,1717079460550,-1021.73440065,0.00068493,120]
[328232855,1717079460559,-1021.73440065,0.00068493,120]
[328232856,1717079460568,-1021.73440065,0.00068493,120]
[328232857,1717079460577,-1021.73440065,0.00068493,120]
[328232858,1717079460586,-1021.73440065,0.00068493,120]
[328232859,1717079460595,-1021.73440065,0.00068493,120]
[328232860,1717079460605,-1021.73440065,0.00068493,120]
[328232861,1717079460614,-1021.73440065,0.00068493,120]
[328232862,1717079460624,-1021.73440065,0.00068493,120]
[328232863,1717079460633,-1021.73440065,0.00068493,120]
[328232864,1717079460643,-1021.73440065,0.00068493,120]
[328232865,1717079460653,-1021.73440065,0.00068493,120]
[328232866,1717079460663,-1021.73440065,0.00068493,120]
[328232867,1717079460673,-1021.73440065,0.00068493,120]
[328232868,1717079460685,-1021.73440065,0.00068493,120]